Workbook

Sheet Input
A1: c | B1: Outil Parker HFDE
B2: Calculateur de Rentabilité | E2: version 1.0
B5: Connaissez-vous le montant des bénéfices et des pertes potentielles de votre entreprise liés au remplacement et à la gestion inappropriée et inefficace de vos filtres hydrauliques de rechange ou de nouvelles installations ? Ce calculateur du marché des pièces de rechange est un outil Parker, simple mais efficace, conçue pour vous permettre de déterminer, en quelques questions, le degré de rentabilité de l'achat et de l'utilisation de votre filtre pour votre entreprise.
B7: Nouvelles Machines & Équipements
B9: Combien de systèmes hydrauliques ou de véhicules vendez-vous par an? | C9: 500 | D9: pcs
B11: Quel est votre prix d'achat du filtre concurrent (complet)? | C11: 50 | D11: €
B13: Quel est votre prix d'achat du filtre complet Parker? | C13: 60 | D13: €
B15: Marché des Pièces de Rechange
B17: Combien de fois, généralement, l'élément filtrant est t'il remplacé sur une | C17: 1 | D17: x
B18: période de 12 mois?
B19: Quelle est votre part de marché pour un élément de rechange non breveté? | C19: 30 | D19: %
B21: Quel est votre prix d'achat d'un élément de rechange non-breveté? | C21: 20 | D21: €
B23: Quel est votre prix net de vente d'un élément de rechange non-breveté? | C23: 50 | D23: €
B25: Quelle est votre part de marché pour un élément de rechange breveté? | C25: 90 | D25: %
B27: Quel est votre prix d'achat d'un élément de rechange breveté? | C27: 22 | D27: €
B29: Quel est votre prix net de vente d'un élément de rechange breveté? | C29: 52 | D29: €

Sheet Tables
B2: Calculateur de Rentabilité
C4: Tableau I | D4: Quantité de ventes | H4: Tableau II | I4: Coûts d'achat
D6: Filtre de | E6: Éléments de rechange | F6: Éléments de rechange | I6: Filtres de concurrent | J6: Filtres de Parker | K6: Éléments de rechange | L6: Éléments de rechange
C7: Année | D7: premier ajustement | E7: non breveté | F7: breveté | H7: Année | I7: premier ajustement | J7: premier ajustement | K7: non breveté | L7: breveté | O7: Filtres conc. & Éléments non breveté | P7: Filters Parker & Éléments breveté
C8: 1 | D8: =Input!$C$9 -> 500 | E8: =((SUM($D$8:D8)-$D$8)+(0.5*D8))*Input!$C$17*Input!$C$19/100 -> 75 | F8: =((SUM($D$8:D8)-$D$8)+(0.5*D8))*Input!$C$17*Input!$C$25/100 -> 225 | H8: 1 | I8: =ROUND((D8*Input!$C$11),0) -> 25000 | J8: =ROUND((D8*Input!$C$13),0) -> 30000 | K8: =ROUND((E8*Input!$C$21),0) -> 1500 | L8: =ROUND((F8*Input!$C$27),0) -> 4950 | O8: =I8+K8 -> 26500 | P8: =J8+L8 -> 34950
C9: 2 | D9: =Input!$C$9 -> 500 | E9: =((SUM($D$8:D9)-$D$8)+(0.5*D9))*Input!$C$17*Input!$C$19/100 -> 225 | F9: =((SUM($D$8:D9)-$D$8)+(0.5*D9))*Input!$C$17*Input!$C$25/100 -> 675 | H9: 2 | I9: =ROUND((D9*Input!$C$11),0) -> 25000 | J9: =ROUND((D9*Input!$C$13),0) -> 30000 | K9: =ROUND((E9*Input!$C$21),0) -> 4500 | L9: =ROUND((F9*Input!$C$27),0) -> 14850 | O9: =I9+K9 -> 29500 | P9: =J9+L9 -> 44850
C10: 3 | D10: =Input!$C$9 -> 500 | E10: =((SUM($D$8:D10)-$D$8)+(0.5*D10))*Input!$C$17*Input!$C$19/100 -> 375 | F10: =((SUM($D$8:D10)-$D$8)+(0.5*D10))*Input!$C$17*Input!$C$25/100 -> 1125 | H10: 3 | I10: =ROUND((D10*Input!$C$11),0) -> 25000 | J10: =ROUND((D10*Input!$C$13),0) -> 30000 | K10: =ROUND((E10*Input!$C$21),0) -> 7500 | L10: =ROUND((F10*Input!$C$27),0) -> 24750 | O10: 32500 | P10: 54750
C11: 4 | D11: =Input!$C$9 -> 500 | E11: =((SUM($D$8:D11)-$D$8)+(0.5*D11))*Input!$C$17*Input!$C$19/100 -> 525 | F11: =((SUM($D$8:D11)-$D$8)+(0.5*D11))*Input!$C$17*Input!$C$25/100 -> 1575 | H11: 4 | I11: =ROUND((D11*Input!$C$11),0) -> 25000 | J11: =ROUND((D11*Input!$C$13),0) -> 30000 | K11: =ROUND((E11*Input!$C$21),0) -> 10500 | L11: =ROUND((F11*Input!$C$27),0) -> 34650 | O11: 35500 | P11: 64650
C12: 5 | D12: =Input!$C$9 -> 500 | E12: =((SUM($D$8:D12)-$D$8)+(0.5*D12))*Input!$C$17*Input!$C$19/100 -> 675 | F12: =((SUM($D$8:D12)-$D$8)+(0.5*D12))*Input!$C$17*Input!$C$25/100 -> 2025 | H12: 5 | I12: =ROUND((D12*Input!$C$11),0) -> 25000 | J12: =ROUND((D12*Input!$C$13),0) -> 30000 | K12: =ROUND((E12*Input!$C$21),0) -> 13500 | L12: =ROUND((F12*Input!$C$27),0) -> 44550 | O12: 38500 | P12: 74550
C13: 6 | D13: =Input!$C$9 -> 500 | E13: =((SUM($D$8:D13)-$D$8)+(0.5*D13))*Input!$C$17*Input!$C$19/100 -> 825 | F13: =((SUM($D$8:D13)-$D$8)+(0.5*D13))*Input!$C$17*Input!$C$25/100 -> 2475 | H13: 6 | I13: =ROUND((D13*Input!$C$11),0) -> 25000 | J13: =ROUND((D13*Input!$C$13),0) -> 30000 | K13: =ROUND((E13*Input!$C$21),0) -> 16500 | L13: =ROUND((F13*Input!$C$27),0) -> 54450 | O13: 41500 | P13: 84450
C14: 7 | D14: =Input!$C$9 -> 500 | E14: =((SUM($D$8:D14)-$D$8)+(0.5*D14))*Input!$C$17*Input!$C$19/100 -> 975 | F14: =((SUM($D$8:D14)-$D$8)+(0.5*D14))*Input!$C$17*Input!$C$25/100 -> 2925 | H14: 7 | I14: =ROUND((D14*Input!$C$11),0) -> 25000 | J14: =ROUND((D14*Input!$C$13),0) -> 30000 | K14: =ROUND((E14*Input!$C$21),0) -> 19500 | L14: =ROUND((F14*Input!$C$27),0) -> 64350 | O14: 44500 | P14: 94350
C15: 8 | D15: =Input!$C$9 -> 500 | E15: =((SUM($D$8:D15)-$D$8)+(0.5*D15))*Input!$C$17*Input!$C$19/100 -> 1125 | F15: =((SUM($D$8:D15)-$D$8)+(0.5*D15))*Input!$C$17*Input!$C$25/100 -> 3375 | H15: 8 | I15: =ROUND((D15*Input!$C$11),0) -> 25000 | J15: =ROUND((D15*Input!$C$13),0) -> 30000 | K15: =ROUND((E15*Input!$C$21),0) -> 22500 | L15: =ROUND((F15*Input!$C$27),0) -> 74250 | O15: 47500 | P15: 104250
C16: 9 | D16: =Input!$C$9 -> 500 | E16: =((SUM($D$8:D16)-$D$8)+(0.5*D16))*Input!$C$17*Input!$C$19/100 -> 1275 | F16: =((SUM($D$8:D16)-$D$8)+(0.5*D16))*Input!$C$17*Input!$C$25/100 -> 3825 | H16: 9 | I16: =ROUND((D16*Input!$C$11),0) -> 25000 | J16: =ROUND((D16*Input!$C$13),0) -> 30000 | K16: =ROUND((E16*Input!$C$21),0) -> 25500 | L16: =ROUND((F16*Input!$C$27),0) -> 84150 | O16: 50500 | P16: 114150
C17: 10 | D17: =Input!$C$9 -> 500 | E17: =((SUM($D$8:D17)-$D$8)+(0.5*D17))*Input!$C$17*Input!$C$19/100 -> 1425 | F17: =((SUM($D$8:D17)-$D$8)+(0.5*D17))*Input!$C$17*Input!$C$25/100 -> 4275 | H17: 10 | I17: =ROUND((D17*Input!$C$11),0) -> 25000 | J17: =ROUND((D17*Input!$C$13),0) -> 30000 | K17: =ROUND((E17*Input!$C$21),0) -> 28500 | L17: =ROUND((F17*Input!$C$27),0) -> 94050 | O17: 53500 | P17: 124050
C18: Totaux | D18: =SUM(D8:D17) -> 5000 | E18: =SUM(E8:E17) -> 7500 | F18: =SUM(F8:F17) -> 22500 | H18: Totaux | I18: =SUM(I8:I17) -> 250000 | J18: =SUM(J8:J17) -> 300000 | K18: =SUM(K8:K17) -> 150000 | L18: =SUM(L8:L17) -> 495000
C21: Tableau III | D21: Revenus commerciaux | H21: Tableau IV | I21: Développement des bénéfices | K21: Développement des marges
E23: Éléments de rechange | F23: Éléments de rechange | I23: Filtres de conc. prem. aj. | J23: Filtres de Parker prem. aj. | K23: Filtres de conc. prem. aj. | L23: Filtres de Parker prem. aj.
C24: Année | E24: non breveté | F24: breveté | H24: Année | I24: & Éléments non breveté | J24: & Éléments breveté | K24: & Éléments non breveté | L24: & Éléments breveté | O24: Filtres conc. & Éléments non breveté | P24: Filters Parker & Éléments breveté | R24: Filtres conc. & Éléments non breveté | S24: Filters Parker & Éléments breveté
C25: 1 | E25: =ROUND((E8*Input!$C$23),0) -> 3750 | F25: =ROUND((F8*Input!$C$29),0) -> 11700 | H25: 1 | I25: =E25-(I8+K8) -> -22750 | J25: =F25-(J8+L8) -> -23250 | K25: =(E25-(I8+K8))/(I8+K8) -> -0.858490566 | L25: =(F25-(J8+L8))/(J8+L8) -> -0.6652360515 | O25: =E25-(I8+K8) -> -22750 | P25: =F25-(J8+L8) -> -23250 | R25: =(E25-(I8+K8))/(I8+K8) -> -0.858490566 | S25: =(F25-(J8+L8))/(J8+L8) -> -0.6652360515
C26: 2 | E26: =ROUND((E9*Input!$C$23),0) -> 11250 | F26: =ROUND((F9*Input!$C$29),0) -> 35100 | H26: 2 | I26: =E26-(I9+K9) -> -18250 | J26: =F26-(J9+L9) -> -9750 | K26: =(E26-(I9+K9))/(I9+K9) -> -0.6186440678 | L26: =(F26-(J9+L9))/(J9+L9) -> -0.2173913043 | O26: =E26-(I9+K9) -> -18250 | P26: =F26-(J9+L9) -> -9750 | R26: =(E26-(I9+K9))/(I9+K9) -> -0.6186440678 | S26: =(F26-(J9+L9))/(J9+L9) -> -0.2173913043
C27: 3 | E27: =ROUND((E10*Input!$C$23),0) -> 18750 | F27: =ROUND((F10*Input!$C$29),0) -> 58500 | H27: 3 | I27: -13750 | J27: 3750 | K27: -0.4230769231 | L27: 0.06849315068 | O27: -13750 | P27: 3750 | R27: -0.4230769231 | S27: 0.06849315068
C28: 4 | E28: =ROUND((E11*Input!$C$23),0) -> 26250 | F28: =ROUND((F11*Input!$C$29),0) -> 81900 | H28: 4 | I28: -9250 | J28: 17250 | K28: -0.2605633803 | L28: 0.2668213457 | O28: -9250 | P28: 17250 | R28: -0.2605633803 | S28: 0.2668213457
C29: 5 | E29: =ROUND((E12*Input!$C$23),0) -> 33750 | F29: =ROUND((F12*Input!$C$29),0) -> 105300 | H29: 5 | I29: -4750 | J29: 30750 | K29: -0.1233766234 | L29: 0.4124748491 | O29: -4750 | P29: 30750 | R29: -0.1233766234 | S29: 0.4124748491
C30: 6 | E30: =ROUND((E13*Input!$C$23),0) -> 41250 | F30: =ROUND((F13*Input!$C$29),0) -> 128700 | H30: 6 | I30: -250 | J30: 44250 | K30: -0.006024096386 | L30: 0.5239786856 | O30: -250 | P30: 44250 | R30: -0.006024096386 | S30: 0.5239786856
C31: 7 | E31: =ROUND((E14*Input!$C$23),0) -> 48750 | F31: =ROUND((F14*Input!$C$29),0) -> 152100 | H31: 7 | I31: 4250 | J31: 57750 | K31: 0.09550561798 | L31: 0.6120826709 | O31: 4250 | P31: 57750 | R31: 0.09550561798 | S31: 0.6120826709
C32: 8 | E32: =ROUND((E15*Input!$C$23),0) -> 56250 | F32: =ROUND((F15*Input!$C$29),0) -> 175500 | H32: 8 | I32: 8750 | J32: 71250 | K32: 0.1842105263 | L32: 0.6834532374 | O32: 8750 | P32: 71250 | R32: 0.1842105263 | S32: 0.6834532374
C33: 9 | E33: =ROUND((E16*Input!$C$23),0) -> 63750 | F33: =ROUND((F16*Input!$C$29),0) -> 198900 | H33: 9 | I33: 13250 | J33: 84750 | K33: 0.2623762376 | L33: 0.7424441524 | O33: 13250 | P33: 84750 | R33: 0.2623762376 | S33: 0.7424441524
C34: 10 | E34: =ROUND((E17*Input!$C$23),0) -> 71250 | F34: =ROUND((F17*Input!$C$29),0) -> 222300 | H34: 10 | I34: 17750 | J34: 98250 | K34: 0.3317757009 | L34: 0.792019347 | O34: 17750 | P34: 98250 | R34: 0.3317757009 | S34: 0.792019347
C35: Totaux | E35: =SUM(E25:E34) -> 375000 | F35: =SUM(F25:F34) -> 1170000 | H35: Totaux | I35: -25000 | J35: 375000 | K35: =(E35-(I18+K18))/(I18+K18) -> -0.0625 | L35: 0.4716981132

Sheet Charts
B2: Calculateur de Rentabilité

Sheet Disclaimer
